bitfinex-derivatives/quotes_BTCF0:USTF0_20210109
["timestamp","ask_amount","ask_price","bid_price","bid_amount"]
[1610163783973,0.13632608,40175.0,40133.0,0.69622608]
[1610163784173,0.00030465,40174.0,40133.0,0.69622608]
[1610163784374,0.08431465,40174.0,40133.0,0.69622608]
[1610163784974,0.00030467,40173.0,40133.0,0.69622608]
[1610163785375,0.00343361,40173.0,40162.0,0.13632608]
[1610163785975,0.07534363,40174.0,40162.0,0.13632608]
[1610163786176,0.07846974,40174.0,40162.0,0.13632608]
[1610163786478,0.00312363,40173.0,40162.0,0.13632608]
[1610163786676,0.00342832,40173.0,40162.0,0.13632608]
[1610163787078,0.00030469,40172.0,40162.0,0.13632608]
[1610163787281,0.13632608,40163.0,40161.0,2.9345]
[1610163787481,0.25133608,40163.0,40161.0,2.9345]
[1610163787881,0.00030471,40162.0,40161.0,2.9345]
[1610163788382,0.03077656,40162.0,40161.0,2.9345]
[1610163789183,0.01887656,40162.0,40161.0,2.9345]
[1610163789384,0.01887656,40162.0,40161.0,3.07082608]
[1610163789582,0.11501,40163.0,40161.0,3.07082608]
[1610163790185,0.11501,40163.0,40161.0,2.9345]
[1610163791185,0.11501,40163.0,40123.0,0.1218]
[1610163791386,0.11501,40163.0,40162.0,0.13632608]
[1610163791787,0.11531468,40163.0,40162.0,0.13632608]
[1610163791985,0.14578397,40163.0,40162.0,0.13632608]
[1610163792188,0.13388397,40163.0,40162.0,0.13632608]
[1610163792589,0.13388397,40163.0,40123.0,0.1218]
[1610163792787,0.13388397,40163.0,40115.0,0.2707]
[1610163792986,0.03077713,40162.0,40127.0,3.0706]
[1610163793386,0.13632608,40148.0,40147.0,0.13632608]
[1610163793585,0.21921608,40148.0,40147.0,0.13632608]
[1610163794388,0.24999872,40148.0,40147.0,0.13632608]
[1610163795188,0.23839872,40148.0,40147.0,0.13632608]
[1610163795391,0.20761608,40148.0,40147.0,0.13632608]
[1610163796391,0.08289,40148.0,40147.0,0.13632608]
[1610163798291,0.07099,40148.0,40147.0,0.13632608]
[1610163798694,0.10177287,40148.0,40147.0,0.13632608]
[1610163799294,0.23809895,40148.0,40147.0,0.13632608]
[1610163800396,0.23809895,40148.0,40139.0,3.481]
[1610163800897,0.03078613,40147.0,40139.0,3.481]
[1610163801298,0.13632608,40140.0,40139.0,3.481]
[1610163801497,0.12442608,40140.0,40133.0,0.13632608]
[1610163803298,0.13632608,40134.0,40133.0,0.13632608]
[1610163803498,0.23241608,40134.0,40133.0,0.13632608]
[1610163804602,0.22051608,40134.0,40133.0,0.13632608]
[1610163805100,0.22051608,40134.0,40128.0,3.9182]
[1610163805302,0.13632608,40129.0,40124.0,0.13632608]
[1610163806101,0.13632608,40129.0,40114.0,3.1995]
[1610163807403,4.01449,40134.0,40119.0,0.13632608]
[1610163807803,0.03079637,40133.0,40119.0,0.13632608]
[1610163808207,0.03079637,40133.0,40114.0,3.1995]
[1610163808604,0.09178051,40133.0,40114.0,3.1995]
[1610163809404,0.13632608,40115.0,40114.0,3.1995]
[1610163809605,0.23371608,40115.0,40114.0,3.1995]
[1610163809805,0.09739,40115.0,40112.0,0.13632608]
[1610163810005,0.09739,40115.0,40114.0,3.3978]
[1610163810905,0.08539,40115.0,40114.0,3.3978]
[1610163813008,0.08539,40115.0,40114.0,3.39802404]
[1610163813408,0.08539,40115.0,40114.0,3.3978]
[1610163813608,0.08539,40115.0,40114.0,3.39802405]
[1610163814010,0.07319,40115.0,40114.0,3.39802405]
[1610163814709,0.13632608,40125.0,40114.0,3.39802405]
[1610163814910,0.13632608,40125.0,40114.0,3.3978]
[1610163815514,3.965,40125.0,40119.0,0.13632608]
[1610163815914,4.08319,40125.0,40119.0,0.13632608]
[1610163816314,4.08319,40125.0,40104.0,2.8116]
[1610163816816,4.08319,40125.0,40105.0,0.0002241]
[1610163817016,4.07169,40125.0,40105.0,0.0002241]
[1610163817415,4.07169,40125.0,40119.0,0.13632608]
[1610163817717,0.11819,40125.0,40119.0,0.13632608]
[1610163819518,0.13632608,40120.0,40119.0,0.13632608]
[1610163820117,0.12432608,40120.0,40119.0,0.13632608]
[1610163821922,0.12432608,40120.0,40119.0,0.57932608]
[1610163822321,0.12432608,40120.0,40119.0,0.57954433]
[1610163823125,0.11242608,40120.0,40119.0,0.57954433]
[1610163825424,0.11819,40125.0,40119.0,0.57954433]
[1610163825625,0.11819,40125.0,40119.0,0.13654433]
[1610163825824,0.00316012,40143.0,40123.0,3.6988]
[1610163826226,0.00030485,40142.0,40124.0,0.00021491]
[1610163826426,0.00315999,40146.0,40124.0,0.00021491]
[1610163826726,0.1569,40147.0,40124.0,0.00021491]
[1610163826925,0.00030484,40145.0,40124.0,0.00021491]
[1610163827125,0.00030484,40145.0,40128.0,3.9795]
[1610163827325,0.00030484,40146.0,40120.0,0.00021491]
[1610163827525,0.00030484,40144.0,40141.0,0.13632608]
[1610163827725,0.1569,40147.0,40141.0,0.13632608]
[1610163827726,0.00030484,40145.0,40141.0,0.13632608]
[1610163828126,0.00030484,40146.0,40141.0,0.13632608]
[1610163828327,0.00030482,40144.0,40137.0,3.314]
[1610163828529,0.00030482,40145.0,40137.0,3.314]
[1610163828927,0.00030482,40143.0,40137.0,3.314]
[1610163829129,0.00030482,40144.0,40137.0,3.314]
[1610163829328,0.00030484,40142.0,40137.0,3.314]
[1610163829528,0.13632608,40138.0,40128.0,0.13632608]
[1610163829728,0.13632608,40138.0,40129.0,3.0093]
[1610163829928,0.22421608,40138.0,40129.0,3.00951494]
[1610163830127,0.22421608,40138.0,40130.0,0.00021494]
[1610163831230,0.08789,40138.0,40130.0,0.00021494]
[1610163831429,0.08789,40138.0,40137.0,0.13632608]
[1610163831630,0.08789,40138.0,40137.0,0.61002608]
[1610163832030,0.08789,40138.0,40137.0,0.61024097]
[1610163832431,0.07629,40138.0,40137.0,0.61024097]
[1610163834938,0.07099,40148.0,40137.0,0.61024097]
[1610163835338,0.13632608,40149.0,40138.0,0.00021489]
[1610163835538,0.12462608,40149.0,40148.0,0.13632608]
[1610163836143,0.12462608,40149.0,40137.0,0.4737]
[1610163836642,0.20768608,40149.0,40138.0,0.00021488]
[1610163836941,0.20768608,40149.0,40137.0,0.4737]
[1610163837542,0.08623402,40149.0,40138.0,0.00021488]
[1610163837843,0.08306,40149.0,40138.0,0.00021488]
[1610163838041,0.08306,40149.0,40148.0,0.13632608]
[1610163838642,0.07126,40149.0,40148.0,3.60412608]
[1610163839042,0.07126,40149.0,40148.0,3.60434092]
[1610163840343,0.07126,40149.0,40148.0,3.60412608]
[1610163841643,0.09131,40163.0,40148.0,3.60412608]
[1610163841843,0.13632608,40167.0,40148.0,3.60412608]
[1610163842047,0.0031702,40169.0,40160.0,0.13632608]
[1610163842243,0.0031702,40168.0,40160.0,0.13632608]
[1610163842644,0.00316949,40166.0,40160.0,0.13632608]
[1610163843244,0.09516949,40166.0,40160.0,0.13632608]
[1610163843444,0.09516949,40166.0,40148.0,3.4678]
[1610163843846,0.00316932,40164.0,40148.0,3.4678]
[1610163844048,0.00316932,40164.0,40157.0,0.13632608]
[1610163844248,0.00316932,40165.0,40157.0,0.13632608]
[1610163844850,0.08336932,40166.0,40157.0,0.69932608]
[1610163845051,0.08336932,40166.0,40159.0,3.5697]
[1610163845951,0.08336932,40166.0,40157.0,0.13632608]
[1610163846154,0.08336932,40166.0,40127.0,0.10948]
[1610163846352,0.08336932,40166.0,40144.0,4.1173]
[1610163847156,0.08336932,40166.0,40145.0,0.00021479]
[1610163847557,0.08336932,40166.0,40144.0,4.1173]
[1610163847757,0.07186932,40166.0,40144.0,4.1173]
[1610163848159,0.07186932,40166.0,40164.0,0.13632608]
[1610163848558,0.54315205,40172.0,40164.0,0.13632608]
[1610163848958,0.54315205,40172.0,40160.0,3.8087]
[1610163849860,0.09877,40172.0,40160.0,3.8087]
[1610163850061,0.09877,40172.0,40162.0,0.13632608]
[1610163850262,0.64177735,40172.0,40162.0,0.13632608]
[1610163850661,0.09877,40172.0,40162.0,0.13632608]
[1610163850862,0.08667,40172.0,40162.0,0.13632608]
[1610163852167,0.13632608,40163.0,40162.0,0.13632608]
[1610163852367,0.24081608,40163.0,40162.0,0.13632608]
[1610163852767,0.24081608,40163.0,40160.0,3.8087]
[1610163853268,0.24081608,40163.0,40117.0,0.08368]
[1610163853470,4.13631608,40163.0,40146.0,3.1291]
[1610163853870,4.12451608,40163.0,40146.0,3.1291]
[1610163854071,3.99999,40163.0,40147.0,0.13632608]
[1610163856070,3.99999,40163.0,40162.0,0.13632608]
[1610163856271,0.10449,40163.0,40162.0,0.13632608]
[1610163856472,0.10449,40163.0,40156.0,3.0051]
[1610163856672,0.10479471,40163.0,40117.0,0.0996]
[1610163856873,0.10449,40163.0,40117.0,0.0996]
[1610163857071,0.09259,40163.0,40126.0,2.8989]
[1610163857275,0.00030471,40162.0,40126.0,2.8989]
[1610163857473,0.00030471,40162.0,40127.0,0.01011407]
[1610163858274,0.00030471,40162.0,40150.0,0.13632608]
[1610163858476,0.45263341,40162.0,40150.0,0.13632608]
[1610163859076,0.00030473,40161.0,40150.0,0.13632608]
[1610163859276,0.00030473,40161.0,40145.0,3.4505]
[1610163859775,0.00030473,40161.0,40146.0,0.00021485]
[1610163860176,0.13632608,40147.0,40146.0,0.00021485]
[1610163860577,0.22779608,40147.0,40146.0,0.00021485]
[1610163860979,0.22779608,40147.0,40145.0,3.58682608]
[1610163861378,0.22779608,40147.0,40146.0,0.00021487]
[1610163863082,0.21629608,40147.0,40146.0,0.00021487]
[1610163866286,0.20419608,40147.0,40146.0,0.00021487]
[1610163868791,0.09147,40147.0,40146.0,0.00021487]
[1610163868992,3.1367,40158.0,40146.0,0.00021487]
[1610163869194,0.08209,40147.0,40146.0,0.00021487]
[1610163869393,0.05849,40147.0,40146.0,0.00021487]
[1610163872598,0.05849,40147.0,40146.0,3.25751487]
[1610163872795,0.05769,40147.0,40146.0,3.25751487]
[1610163873898,0.05769,40147.0,40146.0,0.00021487]
[1610163874198,0.13632608,40149.0,40146.0,0.00021487]
[1610163874997,3.5864,40156.0,40146.0,0.00021487]
[1610163875200,0.1569,40160.0,40146.0,0.00021487]
[1610163875698,0.14530473,40160.0,40146.0,0.00021487]
[1610163876300,0.08099473,40163.0,40158.0,0.13632608]
[1610163876498,0.44618911,40165.0,40158.0,0.13632608]
[1610163876697,0.00030471,40162.0,40158.0,0.13632608]
[1610163876898,0.00030471,40164.0,40158.0,0.13632608]
[1610163877200,0.00030471,40161.0,40158.0,0.13632608]
[1610163877401,0.00030471,40163.0,40158.0,0.13632608]
[1610163877803,0.09120471,40160.0,40158.0,0.13632608]
[1610163878002,0.0909,40160.0,40158.0,0.13632608]
[1610163878203,0.13663079,40159.0,40158.0,0.13632608]
[1610163878505,0.13632608,40159.0,40158.0,0.13632608]
[1610163878705,0.12472608,40159.0,40158.0,0.00022047]
[1610163879204,0.12472608,40159.0,40144.0,0.01164348]
[1610163879404,0.12503079,40159.0,40144.0,0.01164348]
[1610163879605,0.12472608,40159.0,40144.0,0.01164348]
[1610163880006,4.0377,40157.0,40144.0,0.01164348]
[1610163880205,4.0377,40157.0,40150.0,0.13632608]
[1610163880607,4.0377,40157.0,40151.0,0.01164368]
[1610163881307,0.00030472,40156.0,40151.0,0.00022047]
[1610163882211,0.13632608,40152.0,40151.0,0.01164396]
[1610163882409,0.12282608,40152.0,40151.0,0.00022047]
[1610163885714,0.10982608,40152.0,40151.0,0.00022047]
[1610163886314,0.11013083,40152.0,40151.0,0.00022047]
[1610163886619,0.53103083,40152.0,40151.0,0.00022047]
[1610163886818,3.51653083,40152.0,40151.0,0.00022047]
[1610163887223,3.51653083,40152.0,40130.0,0.04662978]
[1610163887420,0.11013083,40152.0,40151.0,0.00022697]
[1610163887618,0.10982608,40152.0,40131.0,0.01371187]
[1610163887819,2.802,40139.0,40131.0,0.01371187]
[1610163888018,2.90516,40139.0,40115.0,3.8877]
[1610163888214,2.90516,40139.0,40132.0,0.00022702]
[1610163888418,0.44244391,40138.0,40122.0,0.13632608]
[1610163888616,0.43094391,40138.0,40122.0,0.13632608]
[1610163888818,0.53060102,40137.0,40133.0,0.00022702]
[1610163889019,0.53090588,40137.0,40123.0,0.01371642]
[1610163889220,0.00030486,40136.0,40134.0,0.00022702]
[1610163889519,0.53062888,40136.0,40124.0,0.00022704]
[1610163889720,0.53062888,40136.0,40135.0,0.00022704]
[1610163890121,0.89613836,40136.0,40123.0,0.00022704]
[1610163890321,0.89613836,40136.0,40135.0,0.00022704]
[1610163890522,0.00030488,40135.0,40124.0,0.00022704]
[1610163890820,0.89614761,40136.0,40122.0,0.13632608]
[1610163891022,0.00030488,40134.0,40125.0,0.00022705]
[1610163891421,0.53014836,40135.0,40123.0,0.00022705]
[1610163891620,0.53014836,40135.0,40122.0,0.13632608]
[1610163891621,0.4609,40133.0,40122.0,0.13632608]
[1610163891823,0.4492,40133.0,40122.0,0.13632608]
[1610163892223,0.4492,40133.0,40123.0,0.00022705]
[1610163892420,0.22312608,40124.0,40123.0,0.00022705]
[1610163894725,0.22312608,40124.0,40122.0,0.13632608]
[1610163894925,0.21132608,40124.0,40122.0,0.13632608]
[1610163897831,0.19942608,40124.0,40122.0,0.13632608]
[1610163901036,0.57853946,40124.0,40122.0,0.13632608]
[1610163901236,0.56633946,40124.0,40122.0,0.13632608]
[1610163904140,0.55433946,40124.0,40122.0,0.13632608]
[1610163904743,0.46591338,40124.0,40122.0,0.13632608]
[1610163907342,0.45371338,40124.0,40122.0,0.13632608]
[1610163909245,0.45371338,40124.0,40123.0,0.00022706]
[1610163909445,0.45371338,40124.0,40122.0,0.13632608]
[1610163910245,0.45371338,40124.0,40123.0,0.00022706]
[1610163910446,0.44191338,40124.0,40123.0,0.00022706]
[1610163910645,0.44191338,40124.0,40122.0,0.13632608]
[1610163911246,0.44191338,40124.0,40123.0,0.00022706]
[1610163911647,0.44191338,40124.0,40122.0,0.13632608]
[1610163911845,0.44191338,40124.0,40123.0,0.00022766]
[1610163913548,0.43011338,40124.0,40123.0,0.45372766]
[1610163914850,0.43011338,40124.0,40123.0,0.46740849]
[1610163916656,0.41831338,40124.0,40123.0,0.46740849]
[1610163919658,0.40651338,40124.0,40123.0,0.46740849]
[1610163922760,0.39471338,40124.0,40123.0,0.46740849]
[1610163925565,0.39471338,40124.0,40123.0,1.96740849]
[1610163925764,0.38291338,40124.0,40123.0,1.96740849]
[1610163925964,0.38291338,40124.0,40123.0,2.00061176]
[1610163926565,0.38291338,40124.0,40123.0,2.12167176]
[1610163926969,0.10765,40150.0,40123.0,2.12167176]
[1610163927168,0.10765,40150.0,40126.0,1.5]
[1610163927569,0.10765,40150.0,40127.0,0.04707664]
[1610163928169,0.10765,40150.0,40127.0,1.54707664]
[1610163928571,0.10765,40150.0,40149.0,0.72282608]
[1610163928772,0.09605,40150.0,40149.0,0.72282608]
[1610163928972,0.09605,40150.0,40149.0,0.7230535]
[1610163930573,0.09605,40150.0,40149.0,0.73671351]
[1610163930773,0.09605,40150.0,40149.0,0.7230535]
[1610163931776,0.0909,40160.0,40149.0,0.73671267]
[1610163931977,0.0669,40160.0,40149.0,0.15021267]
[1610163932378,0.44840126,40194.0,40150.0,0.01388606]
[1610163932576,0.44840126,40194.0,40171.0,0.13632608]
[1610163932776,0.13632608,40195.0,40172.0,0.4832]
[1610163932777,0.58479012,40195.0,40172.0,0.4832]
[1610163934178,0.44798881,40192.0,40172.0,0.4832]
[1610163934378,0.57413881,40192.0,40172.0,0.4832]
[1610163934578,0.12615,40192.0,40185.0,0.13632608]
[1610163935078,0.12595,40192.0,40185.0,0.13632608]
[1610163936480,0.12595,40192.0,40191.0,0.13632608]
[1610163938283,0.11435,40192.0,40191.0,0.13632608]
[1610163939384,0.13632608,40204.0,40191.0,0.13632608]
[1610163940691,0.13632608,40204.0,40187.0,3.8654]
[1610163941085,0.25630608,40204.0,40187.0,3.8654]
[1610163941286,0.24480608,40204.0,40187.0,3.8654]
[1610163941487,0.24480608,40204.0,40152.0,0.11489]
[1610163941690,3.8209,40203.0,40174.0,3.968]
[1610163942589,3.8209,40203.0,40183.0,0.13632608]
[1610163943088,4.26217714,40203.0,40183.0,0.13632608]
[1610163944289,4.25037714,40203.0,40183.0,0.13632608]
[1610163944690,0.13632608,40184.0,40183.0,0.13632608]
[1610163944891,0.25212608,40184.0,40183.0,0.13632608]
[1610163945092,0.25212608,40184.0,40174.0,3.968]
[1610163945693,0.1158,40184.0,40174.0,3.968]
[1610163946692,0.1158,40184.0,40183.0,0.13632608]
[1610163947293,0.104,40184.0,40183.0,0.13632608]
[1610163947895,0.104,40184.0,40183.0,3.8182]
[1610163948693,0.104,40184.0,40183.0,3.95452608]
[1610163950093,0.11998,40204.0,40183.0,3.95452608]
[1610163950297,0.11998,40204.0,40183.0,0.13632608]
[1610163950496,0.2818,40217.0,40192.0,3.0039]
[1610163950696,0.00747601,40221.0,40216.0,0.13632608]
[1610163951297,0.00030446,40220.0,40216.0,0.13632608]
[1610163951496,0.09829446,40220.0,40216.0,0.13632608]
[1610163951896,0.09799,40220.0,40216.0,0.13632608]
[1610163952097,0.00030444,40219.0,40216.0,0.13632608]
[1610163953400,0.08649444,40220.0,40216.0,0.13632608]
[1610163956203,0.00030441,40219.0,40216.0,0.13632608]
[1610163956604,0.07499885,40220.0,40216.0,0.13632608]
[1610163956804,0.29322608,40224.0,40216.0,0.13632608]
[1610163957405,0.00030441,40223.0,40216.0,0.13632608]
[1610163958208,0.03074492,40223.0,40216.0,0.13632608]
[1610163958407,0.11965492,40223.0,40216.0,0.13632608]
[1610163958605,0.13632608,40217.0,40216.0,0.13632608]
[1610163959106,0.13663049,40217.0,40216.0,0.13632608]
[1610163959709,0.12483049,40217.0,40216.0,0.13632608]
[1610163960409,0.12483049,40217.0,40205.0,3.9249]
[1610163960607,0.00030441,40217.0,40206.0,0.13632608]
[1610163960910,0.00030441,40222.0,40206.0,0.13632608]
[1610163961710,0.0307469,40222.0,40206.0,0.13632608]
[1610163962612,0.0189469,40222.0,40214.0,0.13632608]
[1610163963612,0.0189469,40222.0,40205.0,3.9249]
[1610163964614,0.0189469,40222.0,40206.0,0.13632608]
[1610163965215,0.0189469,40222.0,40205.0,3.9249]
[1610163965418,0.02225139,40221.0,40205.0,3.9249]
[1610163965616,0.01075139,40221.0,40205.0,3.9249]
[1610163965818,0.02641139,40222.0,40205.0,3.9249]
[1610163966018,0.03074755,40220.0,40205.0,3.9249]
[1610163966217,0.0307468,40221.0,40205.0,3.9249]
[1610163966417,0.00030443,40219.0,40205.0,3.9249]
[1610163966618,0.00030443,40219.0,40214.0,0.13632608]
[1610163966818,0.03074579,40222.0,40214.0,0.13632608]
[1610163967019,0.00030441,40218.0,40214.0,0.13632608]
[1610163967217,0.03074518,40221.0,40214.0,0.13632608]
[1610163967619,0.00030441,40222.0,40214.0,0.13632608]
[1610163967819,0.00030441,40220.0,40214.0,0.13632608]
[1610163968019,0.00030441,40221.0,40214.0,0.13632608]
[1610163968219,0.00030441,40221.0,40153.0,0.2899]
[1610163968419,3.6518,40220.0,40170.0,3.8108]
[1610163968621,0.13632608,40207.0,40206.0,0.13632608]
[1610163968818,0.12442608,40207.0,40206.0,0.13632608]
[1610163969020,0.22227608,40207.0,40206.0,0.13632608]
[1610163969219,0.22258051,40207.0,40206.0,0.13632608]
[1610163969420,0.22227608,40207.0,40206.0,0.13632608]
[1610163969620,0.22227608,40207.0,40194.0,3.8845]
[1610163970619,0.22227608,40207.0,40206.0,0.13632608]
[1610163970820,0.22227608,40207.0,40194.0,3.8845]
[1610163971021,0.2225805,40207.0,40194.0,3.8845]
[1610163971221,0.22227608,40207.0,40194.0,3.8845]
[1610163971419,0.00030443,40206.0,40194.0,3.8845]
[1610163971719,0.22227608,40207.0,40194.0,3.8845]
[1610163971920,0.21027608,40207.0,40163.0,0.08814]
[1610163972122,0.1569,40206.0,40163.0,0.08814]
[1610163972319,0.15720445,40206.0,40164.0,0.01487488]
[1610163972520,0.00030445,40205.0,40164.0,0.00023038]
[1610163972720,0.29570445,40205.0,40192.0,0.13632608]
[1610163973119,0.00030447,40204.0,40192.0,0.13632608]
[1610163974320,0.00030447,40204.0,40181.0,3.9789]
[1610163974722,0.13632608,40182.0,40181.0,3.9789]
[1610163974922,0.24080608,40182.0,40181.0,3.9789]
[1610163975523,0.11628,40182.0,40181.0,3.9789]
[1610163975728,0.11628,40182.0,40181.0,3.97913043]
[1610163977929,0.10468,40182.0,40181.0,3.97913043]
[1610163979431,0.36575636,40182.0,40181.0,3.97913043]
[1610163981035,0.35375636,40182.0,40181.0,3.97913043]
[1610163982334,0.35375636,40182.0,40181.0,3.99377867]
[1610163984136,0.34195636,40182.0,40181.0,3.99377867]
[1610163987240,0.33025636,40182.0,40181.0,0.01487867]
[1610163990244,0.31845636,40182.0,40181.0,0.01487867]
[1610163993448,0.30665636,40182.0,40181.0,0.01487867]
[1610163996450,0.29485636,40182.0,40181.0,0.01487867]
[1610163999656,0.28305636,40182.0,40181.0,0.01487867]
[1610164002559,0.25945636,40182.0,40181.0,0.01487867]
[1610164002758,0.34361636,40182.0,40181.0,0.01487867]
[1610164004761,0.47994244,40182.0,40181.0,0.01487867]
[1610164005760,0.47994244,40182.0,40181.0,3.51597867]
[1610164005962,0.47904244,40182.0,40181.0,3.51597867]
[1610164007363,0.47904244,40182.0,40181.0,0.01487867]
[1610164008562,0.34271636,40182.0,40181.0,0.01487867]
[1610164009162,0.33041636,40182.0,40181.0,0.01487867]
[1610164009564,0.33041636,40182.0,40181.0,3.41537867]
[1610164012367,0.31811636,40182.0,40181.0,3.41537867]
[1610164015474,0.30591636,40182.0,40181.0,3.41537867]
[1610164016872,0.44224244,40182.0,40181.0,3.41537867]
[1610164017175,0.44224244,40182.0,40181.0,0.01487867]
[1610164018575,0.43054244,40182.0,40181.0,0.01487867]
[1610164018976,3.89904244,40182.0,40181.0,0.01487867]
[1610164019175,3.89904244,40182.0,40180.0,0.01483478]
[1610164019378,3.89904244,40182.0,40181.0,0.00023033]
[1610164019775,4.33867396,40182.0,40181.0,0.00023033]
[1610164019976,4.33867396,40182.0,40165.0,0.01483914]
[1610164020178,0.00746527,40176.0,40164.0,3.628]
[1610164020377,0.00746527,40176.0,40166.0,0.00023039]
[1610164020580,0.00745703,40172.0,40166.0,0.00023039]
[1610164020779,3.183,40166.0,40165.0,0.00023039]
[1610164020980,3.183,40166.0,40144.0,0.13632608]
[1610164021177,3.28338,40166.0,40165.0,0.0002304]
[1610164021378,3.28338,40166.0,40145.0,0.0002304]
[1610164021578,3.27148,40166.0,40145.0,0.0148438]
[1610164022380,0.00742409,40165.0,40145.0,0.0148438]
[1610164022780,0.13632608,40146.0,40145.0,0.0148438]
[1610164023381,0.25600608,40146.0,40145.0,0.0148438]
[1610164023580,0.25600608,40146.0,40145.0,0.0002304]
[1610164023782,0.25600608,40146.0,40145.0,0.01485298]
[1610164024181,0.25600608,40146.0,40145.0,0.0002304]
[1610164024983,0.24320608,40146.0,40145.0,0.0002304]
[1610164025785,0.24320608,40146.0,40137.0,0.01485085]
[1610164025983,0.24320608,40146.0,40137.0,0.01462035]
[1610164026185,0.24320608,40146.0,40138.0,0.00023051]
[1610164026786,0.24320608,40146.0,40139.0,0.00023051]
[1610164026986,0.13632608,40140.0,40138.0,0.00023051]
[1610164028088,0.12412608,40140.0,40138.0,0.00023051]
[1610164028992,0.11968,40146.0,40138.0,0.00023051]
[1610164029392,0.00740711,40163.0,40145.0,2.8198]
[1610164029792,0.10038,40166.0,40145.0,2.8198]
[1610164029993,0.00741708,40171.0,40145.0,2.8198]
[1610164030395,0.00741708,40171.0,40146.0,0.00023044]
[1610164030596,0.2958,40172.0,40146.0,0.00023044]
[1610164030996,0.2958,40172.0,40154.0,0.13632608]
[1610164031196,0.284,40172.0,40154.0,0.13632608]
[1610164031398,3.9217,40161.0,40138.0,0.00023051]
[1610164031597,4.00848,40161.0,40138.0,0.00023051]
[1610164031799,4.00848,40161.0,40139.0,0.00023045]
[1610164032198,4.00848,40161.0,40138.0,0.00023051]
[1610164033001,4.00848,40161.0,40144.0,0.13632608]
[1610164034201,3.99688,40161.0,40144.0,0.13632608]
[1610164034900,0.13632608,40145.0,40144.0,0.13632608]
[1610164035100,0.24586608,40145.0,40144.0,0.13632608]
[1610164036202,0.10954,40145.0,40144.0,0.13632608]
[1610164036602,0.10954,40145.0,40144.0,0.57142608]
[1610164037002,0.10954,40145.0,40144.0,0.57165652]
[1610164037402,0.09804,40145.0,40144.0,0.57165652]
[1610164038803,0.09804,40145.0,40144.0,0.57142608]
[1610164039003,0.09804,40145.0,40144.0,0.4351]
[1610164039403,0.09804,40145.0,40100.0,0.126]
[1610164039604,0.09804,40145.0,40118.0,2.9049]
[1610164040204,0.13632608,40147.0,40119.0,0.01484706]
[1610164040404,0.12402608,40147.0,40119.0,0.01484706]
[1610164040906,2.8992,40149.0,40143.0,0.13632608]
[1610164042908,0.13632608,40144.0,40143.0,0.13632608]
[1610164043308,0.22730608,40144.0,40143.0,0.13632608]
[1610164043509,0.21540608,40144.0,40143.0,0.13632608]
[1610164043909,0.21540608,40144.0,40100.0,0.126]
[1610164044109,0.21540608,40144.0,40109.0,2.9217]
[1610164044708,0.21540608,40144.0,40110.0,0.04947833]
[1610164044909,0.09098,40144.0,40139.0,0.13632608]
[1610164045308,0.09098,40144.0,40140.0,0.0002305]
[1610164046412,0.09098,40144.0,40130.0,0.01485131]
[1610164046610,0.07918,40144.0,40130.0,0.01485131]
[1610164046812,0.07918,40144.0,40141.0,0.0002305]
[1610164047012,0.13632608,40142.0,40138.0,0.13632608]
[1610164047412,0.13632608,40142.0,40139.0,0.0002305]
[1610164049713,0.12462608,40142.0,40139.0,0.0002305]
[1610164050115,0.12462608,40142.0,40139.0,0.01485115]
[1610164050815,0.52592608,40142.0,40139.0,0.01485115]
[1610164051015,0.12462608,40142.0,40139.0,0.0002305]
[1610164051214,3.9331,40140.0,40130.0,0.13632608]
[1610164051615,3.9331,40140.0,40131.0,0.01485452]
[1610164052215,3.9331,40140.0,40120.0,3.9251]
[1610164052416,0.12462608,40142.0,40132.0,0.00023055]
[1610164052616,0.12462608,40142.0,40121.0,0.01485624]
[1610164052817,0.11282608,40142.0,40133.0,0.00023055]
[1610164053015,0.07918,40144.0,40133.0,0.00023055]
[1610164053016,0.13632608,40134.0,40133.0,0.00023055]
[1610164053216,0.24075608,40134.0,40119.0,0.13632608]
[1610164053415,0.24075608,40134.0,40133.0,0.00023057]
[1610164053617,0.24075608,40134.0,40120.0,0.00023057]
[1610164053816,2.9858,40121.0,40120.0,0.00023057]
[1610164054017,2.9858,40121.0,40105.0,3.6656]
[1610164054018,3.08449,40121.0,40105.0,3.6656]
[1610164054220,3.08449,40121.0,40120.0,0.00023059]
[1610164054417,3.08449,40121.0,40106.0,0.01485948]
[1610164054718,3.08449,40121.0,40120.0,0.00023059]
[1610164054917,3.08449,40121.0,40107.0,0.00023059]
[1610164055118,3.08449,40121.0,40108.0,0.13632608]
[1610164055520,3.08449,40121.0,40109.0,0.01486014]
[1610164055819,3.07269,40121.0,40109.0,0.01486014]
[1610164056220,3.07269,40121.0,40109.0,0.01462955]
[1610164056521,3.07269,40121.0,40109.0,0.01486017]
[1610164056920,0.09869,40121.0,40109.0,0.00023062]
[1610164057121,0.13632608,40110.0,40108.0,0.13632608]
[1610164057323,0.25090608,40110.0,40108.0,0.13632608]
[1610164057924,2.8358,40109.0,40108.0,0.13632608]
[1610164059027,2.8238,40109.0,40108.0,0.13632608]
[1610164059727,2.8238,40109.0,40094.0,3.8116]
[1610164060328,2.8238,40109.0,40095.0,0.00023066]
[1610164061130,2.8238,40109.0,40100.0,0.13632608]
[1610164062031,2.8122,40109.0,40100.0,0.13632608]
[1610164063134,0.13632608,40101.0,40100.0,0.13632608]
[1610164063334,3.91412608,40101.0,40100.0,0.13632608]
[1610164063536,4.01995608,40101.0,40100.0,0.13632608]
[1610164063937,4.01995608,40101.0,40087.0,4.1109]
[1610164064337,4.01995608,40101.0,40057.0,0.10319]
[1610164064338,0.24215608,40101.0,40057.0,0.10319]
[1610164064540,3.6942,40092.0,40057.0,0.10319]
[1610164064736,3.78196,40092.0,40058.0,0.01487255]
[1610164065137,3.77026,40092.0,40080.0,0.13632608]
[1610164065342,3.77026,40092.0,40058.0,0.00023071]
[1610164065540,3.77026,40092.0,40056.0,3.8606]
[1610164065739,3.77026,40092.0,40059.0,0.00023073]
[1610164066140,3.77026,40092.0,40057.0,0.00023073]
[1610164066338,0.08776,40092.0,40048.0,0.11024]
[1610164066539,4.051,40075.0,40048.0,0.11024]
[1610164066739,4.13297,40075.0,40040.0,3.3863]
[1610164067139,4.13297,40075.0,40067.0,0.13632608]
[1610164068140,4.12137,40075.0,40067.0,0.13632608]
[1610164068342,0.08197,40075.0,40067.0,0.13632608]
[1610164069141,0.13632608,40068.0,40067.0,0.13632608]
[1610164069545,0.63592608,40068.0,40067.0,0.13632608]
[1610164069742,0.13632608,40068.0,40067.0,0.13632608]
[1610164069943,0.08197,40075.0,40067.0,3.32482608]
[1610164071044,0.08197,40075.0,40074.0,0.13632608]
[1610164071244,0.06977,40075.0,40074.0,0.13632608]